[Event "Paul Kerese Mälestusfestival 2022 Kiirturniir"]
[Site "Pärnu, Estonia Resort Hotel & Spa"]
[Date "????.??.??"]
[Round "7.8"]
[White "Kraini, Juri"]
[Black "Medar, Marti"]
[Result "0-1"]
[TimeControl "15 minutit partiile + 3 sek käigule"]
[WhiteElo "1690"]
[BlackElo "2053"]

1. e4 {[%clk 00:15:05]} {[%emt 00:00:02]} d6 {[%clk 00:15:05]} {[%emt
00:00:01]} 2. d4 {[%clk 00:15:06]} {[%emt 00:00:02]} Nf6 {[%clk 00:15:06]}
{[%emt 00:00:01]} 3. Nc3 {[%clk 00:15:08]} {[%emt 00:00:01]} Nbd7 {[%clk
00:15:08]} {[%emt 00:00:02]} 4. Nf3 {[%clk 00:15:03]} {[%emt 00:00:07]} e5
{[%clk 00:15:08]} {[%emt 00:00:03]} 5. dxe5 {[%clk 00:15:02]} {[%emt 00:00:05]}
dxe5 {[%clk 00:15:09]} {[%emt 00:00:02]} 6. Bc4 {[%clk 00:14:47]} {[%emt
00:00:17]} Be7 {[%clk 00:15:07]} {[%emt 00:00:06]} 7. Bxf7+ {[%clk 00:13:33]}
{[%emt 00:01:17]} Kxf7 {[%clk 00:15:08]} {[%emt 00:00:01]} 8. Ng5+ {[%clk
00:13:35]} Kg8 {[%clk 00:15:10]} {[%emt 00:00:03]} 9. Ne6 {[%clk 00:13:32]}
{[%emt 00:00:06]} Qe8 {[%clk 00:15:11]} {[%emt 00:00:02]} 10. Nxc7 {[%clk
00:13:24]} {[%emt 00:00:10]} Qg6 {[%clk 00:15:13]} {[%emt 00:00:01]} 11. O-O
{[%clk 00:12:52]} {[%emt 00:00:36]} Rb8 {[%clk 00:14:48]} {[%emt 00:00:29]} 12.
Be3 {[%clk 00:11:24]} {[%emt 00:01:30]} b6 {[%clk 00:11:57]} {[%emt 00:02:54]}
13. N7b5 {[%clk 00:11:25]} {[%emt 00:00:02]} a6 {[%clk 00:10:07]} {[%emt
00:01:53]} 14. Nd6 {[%clk 00:11:23]} {[%emt 00:00:05]} Nc5 {[%clk 00:08:41]}
{[%emt 00:01:29]} 15. f4 {[%clk 00:08:57]} {[%emt 00:02:29]} Bg4 {[%clk
00:07:48]} {[%emt 00:00:56]} 16. Nd5 {[%clk 00:08:00]} {[%emt 00:01:00]} Bxd6
{[%clk 00:04:47]} {[%emt 00:03:04]} 17. Nxf6+ {[%clk 00:08:00]} {[%emt
00:00:04]} Qxf6 {[%clk 00:04:23]} {[%emt 00:00:27]} 18. Qxg4 {[%clk 00:07:56]}
{[%emt 00:00:06]} h5 {[%clk 00:03:52]} {[%emt 00:00:34]} 19. Qd1 {[%clk
00:06:53]} {[%emt 00:01:06]} exf4 {[%clk 00:03:39]} {[%emt 00:00:17]} 20. g3
{[%clk 00:05:52]} {[%emt 00:01:04]} Rd8 {[%clk 00:02:46]} {[%emt 00:00:56]} 21.
Qd5+ {[%clk 00:05:15]} {[%emt 00:00:40]} Ne6 {[%clk 00:02:09]} {[%emt
00:00:40]} 22. gxf4 {[%clk 00:03:26]} {[%emt 00:01:52]} Bc5 {[%clk 00:01:58]}
{[%emt 00:00:14]} 23. Qb3 {[%clk 00:03:28]} {[%emt 00:00:02]} Qg6+ {[%clk
00:01:30]} {[%emt 00:00:30]} 24. Kf2 {[%clk 00:03:00]} {[%emt 00:00:31]} Qxe4
{[%clk 00:01:03]} {[%emt 00:00:31]} 25. Bxc5 {[%clk 00:02:54]} {[%emt
00:00:10]} Rd2+ {[%clk 00:01:01]} {[%emt 00:00:05]} 26. Kg3 {[%clk 00:02:38]}
{[%emt 00:00:18]} Qg2+ {[%clk 00:00:59]} {[%emt 00:00:04]} 0-1

[ePGN "0.1;DGT LiveChess/2.2.5"]

[Event "Paul Kerese Mälestusfestival 2022 Välkturniir"]
[Site "Paul Kerese Mälestusfestival 2022 Kiirturniir"]
[Date "2022.07.24"]
[Round "1.1"]
[White "Agrest, Evgenij"]
[Black "Randma, Urmas"]
[Result "1-0"]
[TimeControl "3 min + 2 sek iga käigu eest"]
[WhiteTitle "GM"]
[WhiteElo "2574"]
[BlackElo "1461"]

1. Nf3 {[%clk 00:03:01]} {[%emt 00:00:02]} Nf6 {[%clk 00:03:04]} {[%emt
00:00:01]} 2. b3 {[%clk 00:03:02]} g6 {[%clk 00:03:05]} {[%emt 00:00:01]} 3.
Bb2 {[%clk 00:03:03]} Bg7 {[%clk 00:03:05]} {[%emt 00:00:01]} 4. g3 {[%clk
00:03:04]} {[%emt 00:00:02]} O-O {[%clk 00:03:06]} 5. Bg2 {[%clk 00:03:05]} d6
{[%clk 00:03:05]} {[%emt 00:00:03]} 6. d4 {[%clk 00:03:05]} {[%emt 00:00:01]}
Re8 {[%clk 00:03:03]} {[%emt 00:00:04]} 7. O-O {[%clk 00:03:02]} {[%emt
00:00:06]} Bg4 {[%clk 00:03:03]} {[%emt 00:00:02]} 8. Nbd2 {[%clk 00:02:59]}
{[%emt 00:00:06]} c6 {[%clk 00:02:58]} {[%emt 00:00:07]} 9. h3 {[%clk
00:02:56]} {[%emt 00:00:04]} Bd7 {[%clk 00:02:57]} {[%emt 00:00:03]} 10. e4
{[%clk 00:02:56]} {[%emt 00:00:02]} e5 {[%clk 00:02:50]} {[%emt 00:00:10]} 11.
dxe5 {[%clk 00:02:50]} {[%emt 00:00:08]} dxe5 {[%clk 00:02:45]} {[%emt
00:00:07]} 12. Bxe5 {[%clk 00:02:44]} {[%emt 00:00:07]} Na6 {[%clk 00:02:32]}
{[%emt 00:00:15]} 13. Re1 {[%clk 00:02:34]} {[%emt 00:00:12]} Qc8 {[%clk
00:02:32]} {[%emt 00:00:02]} 14. h4 {[%clk 00:02:19]} {[%emt 00:00:16]} Nc5
{[%clk 00:02:27]} {[%emt 00:00:07]} 15. Bxf6 {[%clk 00:02:12]} {[%emt
00:00:08]} Bxf6 {[%clk 00:02:27]} {[%emt 00:00:03]} 16. e5 {[%clk 00:02:13]}
Bg7 {[%clk 00:02:23]} {[%emt 00:00:04]} 17. Nc4 {[%clk 00:02:14]} {[%emt
00:00:02]} Bf8 {[%clk 00:02:15]} {[%emt 00:00:10]} 18. Nd6 {[%clk 00:02:13]}
{[%emt 00:00:03]} Bxd6 {[%clk 00:02:12]} {[%emt 00:00:06]} 19. Qxd6 {[%clk
00:02:12]} {[%emt 00:00:02]} Na6 {[%clk 00:01:47]} {[%emt 00:00:26]} 20. Ng5
{[%clk 00:02:06]} {[%emt 00:00:08]} Be6 {[%clk 00:01:38]} {[%emt 00:00:11]} 21.
Rad1 {[%clk 00:01:57]} {[%emt 00:00:11]} Qc7 {[%clk 00:01:33]} {[%emt
00:00:08]} 22. Nxe6 {[%clk 00:01:47]} {[%emt 00:00:12]} Rxe6 {[%clk 00:01:33]}
{[%emt 00:00:02]} 23. Qxc7 {[%clk 00:01:47]} {[%emt 00:00:02]} Nxc7 {[%clk
00:01:34]} {[%emt 00:00:01]} 24. Rd7 {[%clk 00:01:48]} Nd5 {[%clk 00:01:18]}
{[%emt 00:00:17]} 25. Bxd5 {[%clk 00:01:43]} {[%emt 00:00:07]} cxd5 {[%clk
00:01:17]} {[%emt 00:00:03]} 26. Rxd5 {[%clk 00:01:43]} {[%emt 00:00:02]} 1-0

[Event "Paul Kerese Mälestusfestival 2022 Välkturniir"]
[Site "Paul Kerese Mälestusfestival 2022 Kiirturniir"]
[Date "2022.07.24"]
[Round "1.2"]
[White "Rezniks, Roberts"]
[Black "Maiorov, Nikita"]
[Result "0-1"]
[TimeControl "3 min + 2 sek iga käigu eest"]
[BlackTitle "GM"]
[WhiteElo "1433"]
[BlackElo "2417"]

1. e4 {[%clk 00:03:03]} c6 {[%clk 00:03:02]} {[%emt 00:00:02]} 2. d4 {[%clk
00:03:04]} {[%emt 00:00:01]} d5 {[%clk 00:03:03]} 3. Nc3 {[%clk 00:03:05]}
{[%emt 00:00:02]} dxe4 {[%clk 00:03:04]} 4. Nxe4 {[%clk 00:03:06]} {[%emt
00:00:01]} Bf5 {[%clk 00:03:05]} 5. Ng3 {[%clk 00:03:07]} {[%emt 00:00:02]} Bg6
{[%clk 00:03:06]} 6. h4 {[%clk 00:03:08]} {[%emt 00:00:01]} h6 {[%clk
00:03:07]} 7. Nf3 {[%clk 00:03:09]} {[%emt 00:00:02]} Nd7 {[%clk 00:03:08]}
{[%emt 00:00:01]} 8. h5 {[%clk 00:03:10]} {[%emt 00:00:01]} Bh7 {[%clk
00:03:09]} 9. Bd3 {[%clk 00:03:11]} {[%emt 00:00:02]} Bxd3 {[%clk 00:03:09]}
{[%emt 00:00:02]} 10. Qxd3 {[%clk 00:03:11]} {[%emt 00:00:01]} e6 {[%clk
00:03:10]} 11. Bd2 {[%clk 00:03:09]} {[%emt 00:00:05]} Ngf6 {[%clk 00:03:10]}
{[%emt 00:00:02]} 12. c4 {[%clk 00:03:09]} {[%emt 00:00:02]} Be7 {[%clk
00:03:02]} {[%emt 00:00:10]} 13. O-O-O {[%clk 00:03:05]} {[%emt 00:00:06]} Qb6
{[%clk 00:02:58]} {[%emt 00:00:05]} 14. Ne4 {[%clk 00:02:31]} {[%emt 00:00:36]}
Nxe4 {[%clk 00:02:55]} {[%emt 00:00:06]} 15. Qxe4 {[%clk 00:02:31]} {[%emt
00:00:01]} Qa6 {[%clk 00:02:52]} {[%emt 00:00:05]} 16. Kb1 {[%clk 00:02:31]}
{[%emt 00:00:02]} Qxc4 {[%clk 00:02:51]} {[%emt 00:00:04]} 17. Rc1 {[%clk
00:02:04]} {[%emt 00:00:28]} Qb5 {[%clk 00:02:00]} {[%emt 00:00:53]} 18. Qg4
{[%clk 00:01:13]} {[%emt 00:00:53]} Bf6 {[%clk 00:01:58]} {[%emt 00:00:03]} 19.
Rhe1 {[%clk 00:01:04]} {[%emt 00:00:11]} O-O-O {[%clk 00:01:51]} {[%emt
00:00:10]} 20. Rc2 {[%clk 00:00:37]} {[%emt 00:00:29]} Nb6 {[%clk 00:01:26]}
{[%emt 00:00:27]} 21. Rec1 {[%clk 00:00:36]} {[%emt 00:00:03]} Qd3 {[%clk
00:01:08]} {[%emt 00:00:20]} 22. Be3 {[%clk 00:00:29]} {[%emt 00:00:08]} Nd5
{[%clk 00:01:05]} {[%emt 00:00:05]} 23. Bd2 {[%clk 00:00:14]} {[%emt 00:00:18]}
Qf5 {[%clk 00:00:48]} {[%emt 00:00:18]} 24. Qxf5 {[%clk 00:00:13]} {[%emt
00:00:03]} exf5 {[%clk 00:00:49]} {[%emt 00:00:01]} 25. Rc5 {[%clk 00:00:10]}
{[%emt 00:00:05]} Rhe8 {[%clk 00:00:45]} {[%emt 00:00:05]} 26. Ba5 {[%clk
00:00:06]} {[%emt 00:00:07]} Rd7 {[%clk 00:00:44]} {[%emt 00:00:03]} 0-1

[Event "Paul Kerese Mälestusfestival 2022 Välkturniir"]
[Site "Paul Kerese Mälestusfestival 2022 Kiirturniir"]
[Date "2022.07.24"]
[Round "1.3"]
[White "Bernotas, Arturs"]
[Black "Valdats, Reinis"]
[Result "0-1"]
[TimeControl "3 min + 2 sek iga käigu eest"]
[WhiteTitle "FM"]
[WhiteElo "2382"]
[BlackElo "1427"]

1. e4 {[%clk 00:03:02]} {[%emt 00:00:01]} c5 {[%clk 00:03:04]} 2. Nf3 {[%clk
00:03:01]} {[%emt 00:00:03]} e6 {[%clk 00:03:05]} {[%emt 00:00:01]} 3. c3
{[%clk 00:03:01]} {[%emt 00:00:02]} Nf6 {[%clk 00:03:04]} {[%emt 00:00:04]} 4.
e5 {[%clk 00:02:59]} {[%emt 00:00:04]} Nd5 {[%clk 00:03:04]} 5. g3 {[%clk
00:02:57]} {[%emt 00:00:04]} Nc6 {[%clk 00:03:05]} {[%emt 00:00:01]} 6. Bg2
{[%clk 00:02:58]} {[%emt 00:00:01]} d6 {[%clk 00:03:03]} {[%emt 00:00:04]} 7.
exd6 Bxd6 {[%clk 00:03:03]} 8. d4 {[%clk 00:02:57]} {[%emt 00:00:02]} O-O
{[%clk 00:02:55]} {[%emt 00:00:10]} 9. O-O {[%clk 00:02:57]} {[%emt 00:00:02]}
cxd4 {[%clk 00:02:51]} {[%emt 00:00:07]} 10. Nxd4 {[%clk 00:02:57]} {[%emt
00:00:01]} a6 {[%clk 00:02:28]} {[%emt 00:00:26]} 11. Nxc6 {[%clk 00:02:19]}
{[%emt 00:00:40]} bxc6 {[%clk 00:02:29]} 12. c4 {[%clk 00:02:19]} {[%emt
00:00:02]} Ne7 {[%clk 00:02:28]} {[%emt 00:00:03]} 13. Nc3 {[%clk 00:02:19]}
{[%emt 00:00:02]} Bb7 {[%clk 00:02:07]} {[%emt 00:00:22]} 14. Qe2 {[%clk
00:02:04]} {[%emt 00:00:17]} Qc7 {[%clk 00:01:41]} {[%emt 00:00:29]} 15. Ne4
{[%clk 00:01:56]} {[%emt 00:00:10]} Nf5 {[%clk 00:01:15]} {[%emt 00:00:28]} 16.
Nxd6 {[%clk 00:01:46]} {[%emt 00:00:12]} Qxd6 {[%clk 00:01:14]} {[%emt
00:00:03]} 17. Bf4 {[%clk 00:01:36]} {[%emt 00:00:12]} Qe7 {[%clk 00:01:14]}
{[%emt 00:00:02]} 18. Rfd1 {[%clk 00:01:27]} {[%emt 00:00:11]} c5 {[%clk
00:01:05]} {[%emt 00:00:12]} 19. Be5 {[%clk 00:00:59]} {[%emt 00:00:29]} Rfd8
{[%clk 00:00:57]} {[%emt 00:00:10]} 20. b3 {[%clk 00:00:57]} {[%emt 00:00:04]}
Bxg2 {[%clk 00:00:55]} {[%emt 00:00:04]} 21. Kxg2 {[%clk 00:00:58]} {[%emt
00:00:02]} Nd4 {[%clk 00:00:51]} {[%emt 00:00:06]} 22. Qe4 {[%clk 00:00:57]}
{[%emt 00:00:03]} Nf5 {[%clk 00:00:36]} {[%emt 00:00:17]} 23. Bb2 {[%clk
00:00:38]} {[%emt 00:00:21]} Qc7 {[%clk 00:00:32]} {[%emt 00:00:07]} 24. Qe5
{[%clk 00:00:16]} {[%emt 00:00:24]} Qxe5 {[%clk 00:00:29]} {[%emt 00:00:05]} 25.
Bxe5 {[%clk 00:00:17]} {[%emt 00:00:01]} Nd4 {[%clk 00:00:30]} {[%emt
00:00:01]} 26. Rd3 {[%clk 00:00:11]} {[%emt 00:00:08]} Nc6 {[%clk 00:00:28]}
{[%emt 00:00:03]} 27. Rxd8+ {[%clk 00:00:10]} {[%emt 00:00:03]} Rxd8 {[%clk
00:00:30]} 28. Bc7 {[%clk 00:00:10]} Rd2 {[%clk 00:00:21]} {[%emt 00:00:11]} 29.
Bb6 {[%clk 00:00:11]} {[%emt 00:00:01]} Nb4 {[%clk 00:00:14]} {[%emt 00:00:09]}
30. Bxc5 {[%clk 00:00:11]} {[%emt 00:00:02]} Nxa2 {[%clk 00:00:14]} {[%emt
00:00:02]} 31. Be3 {[%clk 00:00:09]} {[%emt 00:00:04]} Rb2 {[%clk 00:00:12]}
{[%emt 00:00:02]} 32. c5 {[%clk 00:00:09]} {[%emt 00:00:04]} h6 {[%clk
00:00:12]} {[%emt 00:00:02]} 33. c6 {[%clk 00:00:10]} {[%emt 00:00:02]} Nb4
{[%clk 00:00:12]} {[%emt 00:00:02]} 34. c7 {[%clk 00:00:10]} {[%emt 00:00:02]}
Rc2 {[%clk 00:00:13]} 35. Bf4 {[%clk 00:00:10]} {[%emt 00:00:02]} Nd5 {[%clk
00:00:14]} {[%emt 00:00:01]} 36. Rxa6 {[%clk 00:00:10]} {[%emt 00:00:02]} Nxf4+
{[%clk 00:00:14]} {[%emt 00:00:02]} 37. gxf4 {[%clk 00:00:11]} {[%emt
00:00:01]} Rxc7 {[%clk 00:00:15]} {[%emt 00:00:01]} 38. Rb6 {[%clk 00:00:11]}
{[%emt 00:00:02]} Rc1 {[%clk 00:00:15]} {[%emt 00:00:02]} 39. b4 {[%clk
00:00:11]} {[%emt 00:00:02]} Rb1 {[%clk 00:00:17]} 40. h4 {[%clk 00:00:11]}
{[%emt 00:00:02]} Rb3 {[%clk 00:00:18]} 41. f3 {[%clk 00:00:11]} {[%emt
00:00:02]} Kh7 {[%clk 00:00:18]} {[%emt 00:00:03]} 42. h5 {[%clk 00:00:12]} g6
{[%clk 00:00:14]} {[%emt 00:00:06]} 43. hxg6+ {[%clk 00:00:13]} {[%emt
00:00:01]} Kxg6 {[%emt 00:00:02]} 44. Kg3 {[%clk 00:00:12]} {[%emt 00:00:01]}
Rb2 {[%clk 00:00:13]} {[%emt 00:00:05]} 45. b5 {[%clk 00:00:13]} {[%emt
00:00:01]} h5 {[%clk 00:00:12]} {[%emt 00:00:03]} 46. Rb8 {[%clk 00:00:13]}
{[%emt 00:00:02]} Kf6 {[%clk 00:00:08]} {[%emt 00:00:05]} 47. b6 {[%clk
00:00:13]} {[%emt 00:00:02]} Kg6 {[%clk 00:00:09]} {[%emt 00:00:02]} 48. Kh4
{[%clk 00:00:12]} {[%emt 00:00:03]} Kf5 {[%clk 00:00:09]} {[%emt 00:00:02]} 49.
Kg3 {[%clk 00:00:09]} {[%emt 00:00:05]} h4+ {[%clk 00:00:09]} {[%emt 00:00:02]}
50. Kxh4 {[%clk 00:00:07]} {[%emt 00:00:04]} Kxf4 {[%clk 00:00:10]} 51. Kh3
{[%clk 00:00:04]} {[%emt 00:00:04]} Kxf3 {[%clk 00:00:09]} {[%emt 00:00:03]} 52.
b7 {[%clk 00:00:03]} {[%emt 00:00:04]} Rb3 {[%clk 00:00:08]} {[%emt 00:00:03]}
53. Kh4 {[%clk 00:00:03]} {[%emt 00:00:01]} Kf4 {[%clk 00:00:09]} 0-1

[Event "Paul Kerese Mälestusfestival 2022 Välkturniir"]
[Site "Paul Kerese Mälestusfestival 2022 Kiirturniir"]
[Date "2022.07.24"]
[Round "1.4"]
[White "Valdats, Maris"]
[Black "Chukavin, Kirill"]
[Result "0-1"]
[TimeControl "3 min + 2 sek iga käigu eest"]
[BlackTitle "FM"]
[WhiteElo "1413"]
[BlackElo "2280"]

1. e4 {[%clk 00:03:02]} {[%emt 00:00:01]} c5 {[%clk 00:03:03]} {[%emt
00:00:01]} 2. Nf3 {[%clk 00:03:02]} {[%emt 00:00:02]} e6 {[%clk 00:03:04]} 3.
d4 {[%clk 00:03:03]} {[%emt 00:00:01]} cxd4 {[%clk 00:03:05]} {[%emt 00:00:01]}
4. Nxd4 {[%clk 00:03:03]} {[%emt 00:00:02]} Nf6 {[%clk 00:03:05]} 5. Nc3 {[%clk
00:03:03]} {[%emt 00:00:03]} d6 {[%clk 00:03:05]} {[%emt 00:00:02]} 6. Be2
{[%clk 00:03:02]} {[%emt 00:00:03]} Nc6 {[%clk 00:03:03]} {[%emt 00:00:04]} 7.
O-O {[%clk 00:03:01]} {[%emt 00:00:03]} Be7 {[%clk 00:03:04]} {[%emt 00:00:01]}
8. Be3 {[%clk 00:02:55]} {[%emt 00:00:08]} O-O {[%clk 00:03:04]} {[%emt
00:00:02]} 9. f4 {[%clk 00:02:55]} {[%emt 00:00:02]} e5 {[%clk 00:03:05]}
{[%emt 00:00:01]} 10. Nxc6 {[%clk 00:02:49]} {[%emt 00:00:08]} bxc6 {[%clk
00:03:05]} {[%emt 00:00:01]} 11. Qd2 {[%clk 00:02:48]} {[%emt 00:00:03]} Ng4
{[%clk 00:02:56]} {[%emt 00:00:11]} 12. Bxg4 {[%clk 00:02:46]} {[%emt
00:00:04]} Bxg4 {[%clk 00:02:57]} {[%emt 00:00:01]} 13. h3 {[%clk 00:02:43]}
{[%emt 00:00:06]} Bc8 {[%clk 00:02:53]} {[%emt 00:00:06]} 14. Rad1 {[%clk
00:02:42]} {[%emt 00:00:02]} Qc7 {[%clk 00:02:53]} {[%emt 00:00:02]} 15. Qf2
{[%clk 00:02:29]} {[%emt 00:00:15]} exf4 {[%clk 00:02:37]} {[%emt 00:00:18]} 16.
Qxf4 {[%clk 00:02:23]} {[%emt 00:00:08]} Be6 {[%clk 00:02:36]} {[%emt
00:00:03]} 17. Bd4 {[%clk 00:01:57]} {[%emt 00:00:28]} Rfd8 {[%clk 00:02:10]}
{[%emt 00:00:28]} 18. Qg3 {[%clk 00:01:55]} {[%emt 00:00:04]} Bf8 {[%clk
00:02:08]} {[%emt 00:00:04]} 19. b3 {[%clk 00:01:29]} {[%emt 00:00:29]} Kh8
{[%clk 00:01:06]} {[%emt 00:01:05]} 20. Na4 {[%clk 00:01:27]} {[%emt 00:00:04]}
Qa5 {[%clk 00:00:45]} {[%emt 00:00:22]} 21. c4 {[%clk 00:01:19]} {[%emt
00:00:10]} Qh5 {[%clk 00:00:29]} {[%emt 00:00:18]} 22. Nc3 {[%clk 00:01:08]}
{[%emt 00:00:14]} Qg6 {[%clk 00:00:22]} {[%emt 00:00:09]} 23. Qf3 {[%clk
00:01:03]} {[%emt 00:00:06]} Be7 {[%clk 00:00:16]} {[%emt 00:00:08]} 24. e5
{[%clk 00:00:59]} {[%emt 00:00:06]} dxe5 {[%clk 00:00:13]} {[%emt 00:00:05]} 25.
Bxe5 {[%clk 00:00:59]} {[%emt 00:00:02]} f6 {[%clk 00:00:11]} {[%emt 00:00:04]}
26. Bd4 {[%clk 00:00:55]} {[%emt 00:00:07]} Bb4 {[%clk 00:00:08]} {[%emt
00:00:06]} 27. Ne4 {[%clk 00:00:52]} {[%emt 00:00:05]} Bg8 {[%clk 00:00:05]}
{[%emt 00:00:05]} 28. Ng3 {[%clk 00:00:43]} {[%emt 00:00:10]} Rxd4 {[%clk
00:00:05]} {[%emt 00:00:03]} 29. Rxd4 {[%emt 00:00:03]} Bc5 30. Rfd1 {[%clk
00:00:34]} {[%emt 00:00:10]} Rd8 {[%clk 00:00:07]} {[%emt 00:00:02]} 31. Nf5
{[%clk 00:00:34]} {[%emt 00:00:02]} Be6 {[%clk 00:00:04]} {[%emt 00:00:05]} 32.
Kh1 {[%clk 00:00:31]} {[%emt 00:00:04]} Bxd4 {[%clk 00:00:05]} {[%emt
00:00:02]} 33. Nxd4 {[%clk 00:00:31]} {[%emt 00:00:01]} Bg8 {[%clk 00:00:03]}
{[%emt 00:00:04]} 34. Nxc6 {[%clk 00:00:29]} {[%emt 00:00:05]} Rxd1+ 35. Qxd1
{[%clk 00:00:29]} Qe4 {[%clk 00:00:05]} {[%emt 00:00:01]} 36. Nb4 {[%clk
00:00:24]} {[%emt 00:00:07]} h6 {[%clk 00:00:04]} {[%emt 00:00:02]} 37. Nd5
{[%clk 00:00:25]} {[%emt 00:00:01]} Bf7 {[%clk 00:00:04]} {[%emt 00:00:02]} 38.
Qf3 {[%clk 00:00:23]} {[%emt 00:00:04]} Qe1+ {[%clk 00:00:05]} {[%emt
00:00:01]} 39. Kh2 {[%clk 00:00:23]} Bg6 {[%clk 00:00:05]} {[%emt 00:00:02]} 40.
Qe3 {[%clk 00:00:22]} {[%emt 00:00:04]} Qf1 {[%clk 00:00:05]} {[%emt 00:00:02]}
41. Qxa7 {[%clk 00:00:19]} {[%emt 00:00:04]} Be4 {[%clk 00:00:05]} {[%emt
00:00:02]} 42. Ne3 {[%clk 00:00:13]} {[%emt 00:00:09]} Qf4+ {[%clk 00:00:05]}
{[%emt 00:00:02]} 43. Kg1 {[%clk 00:00:11]} {[%emt 00:00:03]} Qg3 {[%clk
00:00:06]} {[%emt 00:00:01]} 44. Qd4 {[%clk 00:00:07]} {[%emt 00:00:07]} Bb7
{[%clk 00:00:07]} {[%emt 00:00:01]} 45. Qg4 {[%clk 00:00:06]} {[%emt 00:00:02]}
Qxe3+ {[%clk 00:00:07]} {[%emt 00:00:02]} 46. Qd7 {[%clk 00:00:06]} {[%emt
00:00:02]} 0-1

[Event "Paul Kerese Mälestusfestival 2022 Välkturniir"]
[Site "Paul Kerese Mälestusfestival 2022 Kiirturniir"]
[Date "2022.07.24"]
[Round "1.5"]
[White "Golubovskis, Maksims"]
[Black "Dzjuba, Jegor"]
[Result "1-0"]
[TimeControl "3 min + 2 sek iga käigu eest"]
[WhiteElo "2163"]
[BlackElo "1356"]

1. c4 {[%clk 00:03:03]} {[%emt 00:02:27]} e6 {[%clk 00:03:03]} {[%emt
00:00:01]} 2. g3 {[%clk 00:03:04]} {[%emt 00:00:01]} d5 {[%clk 00:03:03]} 3.
Bg2 {[%clk 00:03:06]} Nf6 {[%clk 00:03:03]} {[%emt 00:00:03]} 4. Nf3 {[%clk
00:03:07]} dxc4 {[%clk 00:03:02]} {[%emt 00:00:03]} 5. Qa4+ {[%clk 00:03:09]}
c6 {[%clk 00:03:03]} {[%emt 00:00:02]} 6. Qxc4 {[%clk 00:03:10]} Nbd7 {[%clk
00:03:04]} {[%emt 00:00:02]} 7. O-O {[%clk 00:03:09]} {[%emt 00:00:01]} Be7
{[%clk 00:03:02]} {[%emt 00:00:04]} 8. d4 {[%clk 00:03:11]} Nb6 {[%clk
00:02:59]} {[%emt 00:00:05]} 9. Qc2 {[%clk 00:03:12]} O-O {[%clk 00:02:57]}
{[%emt 00:00:05]} 10. Nc3 {[%clk 00:03:13]} c5 {[%clk 00:02:32]} {[%emt
00:00:28]} 11. dxc5 {[%clk 00:03:09]} {[%emt 00:00:06]} Bxc5 {[%clk 00:02:32]}
{[%emt 00:00:01]} 12. Bg5 {[%clk 00:03:07]} {[%emt 00:00:04]} Be7 {[%clk
00:02:24]} {[%emt 00:00:10]} 13. Rfd1 {[%clk 00:03:05]} {[%emt 00:00:04]} Qc7
{[%clk 00:02:22]} {[%emt 00:00:03]} 14. Qb3 {[%clk 00:03:02]} {[%emt 00:00:05]}
Bd7 {[%clk 00:02:05]} {[%emt 00:00:19]} 15. Bf4 {[%clk 00:02:58]} {[%emt
00:00:06]} Qc4 {[%clk 00:02:01]} {[%emt 00:00:06]} 16. Qc2 {[%clk 00:02:39]}
{[%emt 00:00:22]} Nbd5 {[%clk 00:01:30]} {[%emt 00:00:32]} 17. Ne5 {[%clk
00:02:36]} {[%emt 00:00:06]} Bc6 {[%clk 00:01:02]} {[%emt 00:00:30]} 18. Nxc4
{[%clk 00:02:35]} {[%emt 00:00:02]} Nxc3 {[%clk 00:01:01]} {[%emt 00:00:04]} 19.
Qxc3 {[%clk 00:02:35]} {[%emt 00:00:02]} Bxg2 {[%clk 00:01:02]} {[%emt
00:00:02]} 20. Kxg2 {[%clk 00:02:36]} {[%emt 00:00:01]} Nd5 {[%clk 00:01:03]}
21. Qf3 {[%clk 00:02:31]} {[%emt 00:00:07]} Rac8 {[%clk 00:01:00]} {[%emt
00:00:05]} 22. Rac1 {[%clk 00:02:32]} Rfd8 {[%clk 00:00:58]} {[%emt 00:00:04]}
23. e4 {[%clk 00:02:29]} {[%emt 00:00:06]} Nf6 {[%clk 00:00:45]} {[%emt
00:00:15]} 24. Rxd8+ {[%clk 00:02:28]} {[%emt 00:00:03]} Rxd8 {[%clk 00:00:46]}
25. Rd1 {[%clk 00:02:29]} Rc8 {[%clk 00:00:44]} {[%emt 00:00:04]} 26. b3 {[%clk
00:02:30]} h6 {[%clk 00:00:43]} {[%emt 00:00:04]} 27. e5 {[%clk 00:02:29]}
{[%emt 00:00:02]} Nd5 {[%clk 00:00:43]} {[%emt 00:00:01]} 28. Rxd5 {[%clk
00:02:30]} {[%emt 00:00:01]} exd5 {[%clk 00:00:44]} {[%emt 00:00:01]} 29. Qxd5
{[%clk 00:02:31]} {[%emt 00:00:01]} Bb4 {[%clk 00:00:43]} {[%emt 00:00:03]} 30.
e6 {[%clk 00:02:30]} {[%emt 00:00:03]} fxe6 {[%emt 00:00:02]} 31. Qxe6+ {[%emt
00:00:01]} Kh7 {[%clk 00:00:38]} {[%emt 00:00:04]} 32. Qf5+ {[%clk 00:02:31]}
{[%emt 00:00:02]} 1-0